fUSD/lending_fUSD_20241008
["ID","MTS","AMOUNT","RATE_DAILY","PERIOD"]
[340051575,1728402640749,-200.0,0.00011447,2]
[340051576,1728402640759,-2000.0,0.00011447,2]
[340051577,1728402640768,-200.0,0.00011447,2]
[340051578,1728402640778,-200.0,0.00011447,2]
[340051579,1728402640792,-484.13,0.00011473,2]
[340051580,1728402640803,-2417.11,0.00011476,2]
[340051581,1728402640813,-2417.11,0.00011479,2]
[340051582,1728402640822,-2417.11,0.00011482,2]
[340051583,1728402640831,-2417.11,0.00011485,2]
[340051584,1728402640841,-2417.11,0.00011488,2]
[340051585,1728402640849,-2417.11,0.00011491,2]
[340051586,1728402640859,-2417.11,0.00011494,2]
[340051587,1728402640869,-2417.11,0.00011497,2]
[340051588,1728402640878,-1000.0,0.00011498,2]
[340051589,1728402640887,-2417.11,0.000115,2]
[340051590,1728402640897,-2417.11,0.00011503,2]
[340051591,1728402640908,-2417.11,0.00011506,2]
[340051592,1728402640918,-2751.0,0.00011507,2]
[340051593,1728402640927,-1467.91,0.00011507,2]
[340051594,1728402640937,-2417.11,0.00011509,2]
[340051595,1728402640946,-2417.11,0.00011512,2]
[340051596,1728402640955,-2417.11,0.00011515,2]
[340051597,1728402640965,-2417.11,0.00011518,2]
[340051598,1728402640974,-2417.11,0.00011521,2]
[340051599,1728402640983,-2417.11,0.00011524,2]
[340051600,1728402640992,-2417.11,0.00011527,2]
[340051601,1728402641070,-240.31,0.0001153,2]
[340051602,1728402641079,-2417.11,0.0001153,2]
[340051603,1728402641089,-2417.11,0.00011533,2]
[340051604,1728402641099,-172.02124155,0.000116,2]
[340051605,1728402641110,-471.0,0.000118,2]
[340051606,1728402641123,-214.40180187,0.000119,2]
[340051607,1728402641133,-10000.0,0.00011906,2]
[340051608,1728402641143,-153.0,0.00011991,2]
[340051609,1728402641153,-368.42,0.00012033,2]
[340051610,1728402641163,-186.0,0.00012033,2]
[340051611,1728402641172,-44476.98,0.00012055,2]
[340051612,1728402641182,-1467.91,0.00012055,2]
[340051613,1728402641193,-180.0,0.00012055,2]
[340051614,1728402641203,-435.931,0.00012292,2]
[340051615,1728402641212,-312.0,0.000123,2]
[340051616,1728402641221,-600.0,0.00012329,2]
[340051617,1728402641231,-600.0,0.00012329,2]
[340051618,1728402641240,-600.0,0.00012329,2]
[340051619,1728402641250,-600.0,0.00012329,2]
[340051620,1728402641260,-600.0,0.00012329,2]
[340051621,1728402641270,-600.0,0.00012329,2]
[340051622,1728402641280,-600.0,0.00012329,2]
[340051623,1728402641290,-600.0,0.00012329,2]
[340051624,1728402641299,-600.0,0.00012329,2]
[340051625,1728402641309,-600.0,0.00012329,2]
[340051626,1728402641318,-1000.0,0.00012329,2]
[340051627,1728402641327,-1000.0,0.00012329,2]
[340051628,1728402641336,-1000.0,0.00012329,2]
[340051629,1728402641347,-1000.0,0.00012329,2]
[340051630,1728402641357,-1000.0,0.00012329,2]
[340051631,1728402641365,-1000.0,0.00012329,2]
[340051632,1728402641375,-1000.0,0.00012329,2]
[340051633,1728402641384,-1000.0,0.00012329,2]
[340051634,1728402641394,-1000.0,0.00012329,2]
[340051635,1728402641404,-1000.0,0.00012329,2]
[340051636,1728402641413,-1000.0,0.00012329,2]
[340051637,1728402641429,-1000.0,0.00012329,2]
[340051638,1728402641444,-1000.0,0.00012329,2]
[340051639,1728402641454,-1000.0,0.00012329,2]
[340051640,1728402641464,-1000.0,0.00012329,2]
[340051641,1728402641474,-1000.0,0.00012329,2]
[340051642,1728402641485,-1000.0,0.00012329,2]
[340051643,1728402641495,-1000.0,0.00012329,2]
[340051644,1728402641504,-1000.0,0.00012329,2]
[340051645,1728402641516,-1000.0,0.00012329,2]
[340051646,1728402641525,-1000.0,0.00012329,2]
[340051647,1728402641535,-1000.0,0.00012329,2]
[340051648,1728402641546,-1000.0,0.00012329,2]
[340051649,1728402641556,-1000.0,0.00012329,2]
[340051650,1728402641566,-1000.0,0.00012329,2]
[340051651,1728402641576,-1000.0,0.00012329,2]
[340051652,1728402641587,-1000.0,0.00012329,2]
[340051653,1728402641597,-1000.0,0.00012329,2]
[340051654,1728402641608,-1000.0,0.00012329,2]
[340051655,1728402641618,-1000.0,0.00012329,2]
[340051656,1728402641628,-1000.0,0.00012329,2]
[340051657,1728402641638,-1000.0,0.00012329,2]
[340051658,1728402641648,-1000.0,0.00012329,2]
[340051659,1728402641657,-1000.0,0.00012329,2]
[340051660,1728402641667,-1000.0,0.00012329,2]
[340051661,1728402641677,-1000.0,0.00012329,2]
[340051662,1728402641686,-1000.0,0.00012329,2]
[340051663,1728402641695,-1000.0,0.00012329,2]
[340051664,1728402641705,-1000.0,0.00012329,2]
[340051665,1728402641715,-1000.0,0.00012329,2]
[340051666,1728402641724,-1000.0,0.00012329,2]
[340051667,1728402641734,-1000.0,0.00012329,2]
[340051668,1728402641743,-1000.0,0.00012329,2]
[340051669,1728402641753,-1000.0,0.00012329,2]
[340051670,1728402641763,-1000.0,0.00012329,2]
[340051671,1728402641772,-1000.0,0.00012329,2]
[340051672,1728402641782,-1000.0,0.00012329,2]
[340051673,1728402641791,-1000.0,0.00012329,2]
[340051674,1728402641801,-1000.0,0.00012329,2]
[340051675,1728402641810,-1000.0,0.00012329,2]
[340051676,1728402641820,-1000.0,0.00012329,2]
[340051677,1728402641831,-1000.0,0.00012329,2]
[340051678,1728402641840,-1000.0,0.00012329,2]
[340051679,1728402641850,-1000.0,0.00012329,2]
[340051680,1728402641860,-1000.0,0.00012329,2]
[340051681,1728402641869,-1000.0,0.00012329,2]
[340051682,1728402641878,-1000.0,0.00012329,2]
[340051683,1728402641888,-1000.0,0.00012329,2]
[340051684,1728402641897,-1000.0,0.00012329,2]
[340051685,1728402641924,-1000.0,0.00012329,2]
[340051686,1728402641933,-1000.0,0.00012329,2]
[340051687,1728402641942,-1000.0,0.00012329,2]
[340051688,1728402641951,-1000.0,0.00012329,2]
[340051689,1728402641960,-1000.0,0.00012329,2]
[340051690,1728402641970,-1000.0,0.00012329,2]
[340051691,1728402641979,-1000.0,0.00012329,2]
[340051692,1728402641993,-1000.0,0.00012329,2]
[340051693,1728402642002,-1000.0,0.00012329,2]
[340051694,1728402642013,-484.0,0.00012329,2]
[340051695,1728402642022,-1000.0,0.00012329,2]
[340051696,1728402642032,-1000.0,0.00012329,2]
[340051697,1728402642041,-1000.0,0.00012329,2]
[340051698,1728402642137,-1000.0,0.00012329,2]
[340051699,1728402642146,-1000.0,0.00012329,2]
[340051700,1728402642155,-1000.0,0.00012329,2]
[340051701,1728402642165,-1000.0,0.00012329,2]
[340051702,1728402642174,-1000.0,0.00012329,2]
[340051703,1728402642183,-1000.0,0.00012329,2]
[340051704,1728402642192,-421.0,0.00012329,2]
[340051705,1728402642201,-435.931,0.00012347,2]
[340051706,1728402642210,-154.52,0.00012364,2]
[340051707,1728402642219,-502.48150386,0.00012373,2]
[340051708,1728402642228,-503.67626158,0.00012373,2]
[340051709,1728402642238,-500.93525756,0.00012373,2]
[340051710,1728402642248,-435.931,0.00012403,2]
[340051711,1728402642258,-163.85,0.00012445,2]
[340051712,1728402642267,-167.63,0.00012445,2]
[340051713,1728402642277,-166.86,0.00012445,2]
[340051714,1728402642286,-10000.0,0.00012447,2]
[340051715,1728402642295,-368.42,0.00012458,2]
[340051716,1728402642305,-435.931,0.0001246,2]
[340051717,1728402642314,-508.33,0.000125,2]
[340051718,1728402642323,-435.931,0.00012517,2]
[340051719,1728402642332,-435.931,0.00012575,2]
[340051720,1728402642341,-1467.91,0.00012603,2]
[340051721,1728402642351,-435.931,0.00012633,2]
[340051722,1728402642360,-435.931,0.00012691,2]
[340051723,1728402642370,-484.13,0.00012748,2]
[340051724,1728402642379,-435.931,0.00012751,2]
[340051725,1728402642389,-1000.0,0.00012776,2]
[340051726,1728402642398,-435.931,0.0001281,2]
[340051727,1728402642407,-240.31,0.00012811,2]
[340051728,1728402642417,-735.89,0.00012825,2]
[340051729,1728402642426,-368.42,0.00012884,2]
[340051730,1728402642436,-179.99,0.00012893,2]
[340051731,1728402642446,-435.0,0.000129,2]
[340051732,1728402642455,-26242.27940853,0.000129,2]
[340051733,1728402642466,-167.63,0.00012958,2]
[340051734,1728402642475,-1300.0,0.00013,4]
[340051735,1728402642485,-300.0,0.00013,2]
[340051736,1728402642494,-166.86,0.00013129,2]
[340051737,1728402642508,-1467.91,0.00013151,2]
[340051738,1728402642518,-227.0,0.000132,2]
[340051739,1728402642528,-368.42,0.0001331,2]
[340051740,1728402642538,-1172.67908648,0.00013386,2]
[340051741,1728402642548,-1714.09,0.00013425,2]
[340051742,1728402642558,-167.63,0.00013472,2]
[340051743,1728402642579,-303.96,0.00013512,2]
[340051744,1728402642596,-800.0,0.00013699,2]
[340051745,1728402642617,-800.0,0.00013699,2]
[340051746,1728402642637,-800.0,0.00013699,2]
[340051747,1728402642658,-800.0,0.00013699,2]
[340051748,1728402642676,-800.0,0.00013699,2]
[340051749,1728402642695,-800.0,0.00013699,2]
[340051750,1728402642711,-800.0,0.00013699,2]
[340051751,1728402642727,-800.0,0.00013699,2]
[340051752,1728402642746,-800.0,0.00013699,2]
[340051753,1728402642766,-800.0,0.00013699,2]
[340051754,1728402642779,-200.0,0.00013699,2]
[340051755,1728402642801,-800.0,0.00013699,2]
[340051756,1728402642817,-500.0,0.00013699,2]
[340051757,1728402642835,-800.0,0.00013699,2]
[340051758,1728402642849,-800.0,0.00013699,2]
[340051759,1728402642865,-800.0,0.00013699,2]
[340051760,1728402642882,-51311.86,0.00013699,2]
[340051761,1728402642898,-800.0,0.00013699,2]
[340051762,1728402642914,-800.0,0.00013699,2]
[340051763,1728402642929,-173.12,0.000137,2]
[340051764,1728402642946,-368.42,0.00013735,2]
[340051765,1728402642961,-152.717073,0.000138,2]
[340051766,1728402642974,-151.0,0.000138,2]
[340051767,1728402642989,-927.818187,0.000138,2]
[340051768,1728402643004,-927.818187,0.000138,2]
[340051769,1728402643024,-151.787405,0.000138,2]
[340051770,1728402643039,-151.0,0.000138,2]
[340051771,1728402643054,-151.0,0.000138,2]
[340051772,1728402643068,-151.0,0.000138,2]
[340051773,1728402643083,-151.0,0.000138,2]
[340051774,1728402643097,-161.857269,0.000138,2]
[340051775,1728402643112,-151.0,0.000138,2]
[340051777,1728402643128,-254.214006,0.000138,2]
[340051778,1728402643143,-254.214006,0.000138,2]
[340051779,1728402643157,-151.0,0.000138,2]
[340051780,1728402643173,-496.188665,0.000138,2]
[340051781,1728402643188,-496.188665,0.000138,2]
[340051782,1728402643204,-151.0,0.000138,2]
[340051783,1728402643218,-163.629079,0.000138,2]
[340051784,1728402643233,-163.629079,0.000138,2]
[340051785,1728402643248,-151.0,0.000138,2]
[340051786,1728402643263,-151.0,0.000138,2]
[340051788,1728402643365,-154.089868,0.000138,2]
[340051789,1728402643381,-151.0,0.000138,2]
[340051790,1728402643392,-256.360693,0.000138,2]
[340051791,1728402643402,-256.360693,0.000138,2]
[340051792,1728402643413,-341.224694,0.000138,2]
[340051793,1728402643422,-151.0,0.000138,2]
[340051794,1728402643433,-153.441613,0.000138,2]
[340051795,1728402643443,-341.224694,0.000138,2]
[340051796,1728402643453,-151.0,0.000138,2]
[340051797,1728402643462,-153.047739,0.000138,2]
[340051798,1728402643473,-151.563535,0.000138,2]
[340051799,1728402643483,-151.0,0.000138,2]
[340051800,1728402643492,-151.0,0.000138,2]
[340051801,1728402643505,-1143.820271,0.000138,2]
[340051802,1728402643515,-1143.820271,0.000138,2]
[340051803,1728402643524,-153.855248,0.000138,2]
[340051804,1728402643534,-151.0,0.000138,2]
[340051805,1728402643544,-151.0,0.000138,2]
[340051806,1728402643554,-151.0,0.000138,2]
[340051807,1728402643564,-151.0,0.000138,2]
[340051808,1728402643574,-233.972296,0.000138,2]
[340051809,1728402643584,-233.972296,0.000138,2]
[340051810,1728402643593,-151.0,0.000138,2]
[340051811,1728402643604,-151.0,0.000138,2]
[340051812,1728402643616,-263.34538,0.000138,2]
[340051813,1728402643626,-152.628592,0.000138,2]
[340051814,1728402643636,-263.34538,0.000138,2]
[340051815,1728402643646,-256.511464,0.000138,2]
[340051816,1728402643657,-383.646035,0.000138,2]
[340051817,1728402643666,-256.511464,0.000138,2]
[340051818,1728402643676,-383.646035,0.000138,2]
[340051819,1728402643687,-151.0,0.000138,2]
[340051820,1728402643697,-151.0,0.000138,2]
[340051821,1728402643706,-152.923658,0.000138,2]
[340051822,1728402643716,-151.0,0.000138,2]
[340051823,1728402643725,-340.836957,0.000138,2]
[340051824,1728402643735,-340.836957,0.000138,2]
[340051825,1728402643744,-151.0,0.000138,2]
[340051826,1728402643754,-151.0,0.000138,2]
[340051827,1728402643764,-151.0,0.000138,2]
[340051828,1728402643775,-151.0,0.000138,2]
[340051829,1728402643785,-151.0,0.000138,2]
[340051830,1728402643795,-151.0,0.000138,2]
[340051831,1728402643806,-151.0,0.000138,2]
[340051832,1728402643816,-151.0,0.000138,2]
[340051833,1728402643826,-151.0,0.000138,2]
[340051834,1728402643836,-152.279622,0.000138,2]
[340051835,1728402643846,-151.875884,0.000138,2]
[340051836,1728402643857,-163.608933,0.000138,2]
[340051837,1728402643867,-163.608933,0.000138,2]
[340051838,1728402643876,-332.643552,0.000138,2]
[340051839,1728402643886,-151.0,0.000138,2]
[340051840,1728402643896,-221.866488,0.000138,2]
[340051841,1728402643907,-151.0,0.000138,2]
[340051842,1728402643916,-221.866488,0.000138,2]
[340051843,1728402643926,-707.451329,0.000138,2]
[340051844,1728402643936,-707.451329,0.000138,2]
[340051845,1728402643946,-151.0,0.000138,2]
[340051846,1728402643956,-152.831378,0.000138,2]
[340051847,1728402643965,-151.0,0.000138,2]
[340051848,1728402643976,-152.164398,0.000138,2]
[340051850,1728402643986,-151.0,0.000138,2]
[340051851,1728402643997,-151.0,0.000138,2]
[340051852,1728402644007,-151.0,0.000138,2]
[340051853,1728402644017,-151.0,0.000138,2]
[340051854,1728402644027,-151.0,0.000138,2]
[340051855,1728402644037,-151.0,0.000138,2]
[340051856,1728402644047,-151.0,0.000138,2]
[340051857,1728402644057,-152.668265,0.000138,2]
[340051858,1728402644066,-151.0,0.000138,2]
[340051859,1728402644076,-151.0,0.000138,2]
[340051860,1728402644086,-151.0,0.000138,2]
[340051861,1728402644096,-440200.397002,0.000138,3]
[340051862,1728402644106,-151.0,0.000138,2]
[340051863,1728402644118,-491.420714,0.000138,2]
[340051864,1728402644127,-491.420714,0.000138,2]
[340051865,1728402644138,-1574.273559,0.000138,2]
[340051866,1728402644150,-1574.273559,0.000138,2]
[340051867,1728402644162,-151.0,0.000138,2]
[340051868,1728402644171,-151.0,0.000138,2]
[340051869,1728402644181,-155.045132,0.000138,2]
[340051870,1728402644191,-1057.013317,0.000138,2]
[340051871,1728402644201,-151.0,0.000138,2]
[340051872,1728402644210,-1057.013317,0.000138,2]
[340051873,1728402644220,-151.0,0.000138,2]
[340051874,1728402644232,-151.0,0.000138,2]
[340051875,1728402644243,-151.0,0.000138,2]
[340051876,1728402644255,-152.064313,0.000138,2]
[340051877,1728402644266,-151.0,0.000138,2]
[340051878,1728402644276,-151.0,0.000138,2]
[340051879,1728402644285,-151.0,0.000138,2]
[340051880,1728402644295,-151.0,0.000138,2]
[340051881,1728402644304,-151.0,0.000138,2]
[340051882,1728402644314,-151.0,0.000138,2]
[340051883,1728402644324,-151.0,0.000138,2]
[340051884,1728402644335,-151.0,0.000138,2]
[340051885,1728402644345,-151.0,0.000138,2]
[340051886,1728402644355,-151.0,0.000138,2]
[340051887,1728402644365,-151.0,0.000138,2]
[340051888,1728402644375,-166.86,0.00013814,2]
[340051889,1728402644386,-6362.1445805,0.0001389,2]
[340051890,1728402644396,-2730.2097979,0.0001389,2]
[340051891,1728402644406,-151.0,0.000139,2]
[340051892,1728402644417,-151.0,0.000139,2]
[340051893,1728402644428,-151.0,0.000139,2]
[340051894,1728402644438,-1143.820271,0.000139,2]
[340051895,1728402644448,-1143.820271,0.000139,2]
[340051896,1728402644458,-151.0,0.000139,2]
[340051897,1728402644467,-151.0,0.000139,2]
[340051898,1728402644477,-151.0,0.000139,2]
[340051899,1728402644487,-233.972296,0.000139,2]
[340051900,1728402644497,-233.972296,0.000139,2]
[340051901,1728402644567,-151.0,0.000139,2]
[340051902,1728402644577,-151.0,0.000139,2]
[340051903,1728402644587,-263.34538,0.000139,2]
[340051904,1728402644597,-263.34538,0.000139,2]
[340051905,1728402644607,-256.511464,0.000139,2]
[340051906,1728402644617,-383.646035,0.000139,2]
[340051907,1728402644627,-256.511464,0.000139,2]
[340051908,1728402644638,-383.646035,0.000139,2]
[340051909,1728402644648,-151.0,0.000139,2]
[340051910,1728402644657,-151.0,0.000139,2]
[340051911,1728402644667,-151.0,0.000139,2]
[340051912,1728402644677,-340.836957,0.000139,2]
[340051913,1728402644687,-340.836957,0.000139,2]
[340051914,1728402644696,-151.0,0.000139,2]
[340051915,1728402644706,-151.0,0.000139,2]
[340051916,1728402644715,-151.0,0.000139,2]
[340051917,1728402644725,-151.0,0.000139,2]
[340051918,1728402644734,-151.0,0.000139,2]
[340051919,1728402644744,-151.0,0.000139,2]
[340051920,1728402644753,-151.0,0.000139,2]
[340051921,1728402644763,-151.0,0.000139,2]
[340051922,1728402644773,-151.0,0.000139,2]
[340051923,1728402644783,-163.608933,0.000139,2]
[340051924,1728402644793,-163.608933,0.000139,2]
[340051925,1728402644803,-332.643552,0.000139,2]
[340051926,1728402644813,-707.451329,0.000139,2]
[340051927,1728402644823,-707.451329,0.000139,2]
[340051928,1728402644833,-313726.006123,0.000139,3]
[340051929,1728402644843,-151.0,0.000139,2]
[340051930,1728402644855,-151.0,0.000139,2]
[340051931,1728402644865,-151.0,0.000139,2]
[340051932,1728402644875,-10000.0,0.00013944,2]
[340051933,1728402644885,-201.9090207,0.00013973,2]
[340051934,1728402644895,-2000.0,0.00013973,2]
[340051935,1728402644905,-167.63,0.00013985,2]
[340051936,1728402644916,-50053.11479401,0.00014,4]
[340051937,1728402644925,-383.749,0.00014,2]
[340051938,1728402644935,-577.628,0.00014,2]
[340051939,1728402644945,-150.0,0.00014,2]
[340051940,1728402644955,-484.13,0.00014023,2]
[340051941,1728402644966,-1000.0,0.00014054,2]
[340051942,1728402644976,-240.31,0.00014092,2]
[340051943,1728402644986,-154.52,0.0001413,2]
[340051944,1728402644995,-368.42,0.00014161,2]
[340051945,1728402645006,-166.86,0.00014499,2]
[340051946,1728402645017,-167.63,0.00014499,2]
[340051947,1728402645027,-600.0,0.0001455,2]
[340051948,1728402645037,-600.0,0.0001455,2]
[340051949,1728402645047,-600.0,0.0001455,2]
[340051950,1728402645058,-600.0,0.0001455,2]
[340051951,1728402645067,-368.42,0.00014586,2]
[340051952,1728402645078,-430.0,0.00015,2]
[340051953,1728402645087,-710.0,0.00015,2]
[340051954,1728402645097,-430.0,0.00015,2]
[340051955,1728402645108,-2800.0,0.00015,2]
[340051956,1728402645121,-350.0,0.00015,2]
[340051957,1728402645131,-300.0,0.00015068,2]
[340051958,1728402645142,-735.89,0.00015089,2]
[340051959,1728402645152,-484.13,0.00015298,2]
[340051960,1728402645163,-1000.0,0.00015331,2]
[340051961,1728402645174,-240.31,0.00015373,2]
[340051962,1728402645184,-600.0,0.0001552,2]
[340051963,1728402645195,-3327.44638991,0.00015656,2]
[340051964,1728402645205,-154.52,0.00015896,2]
[340051965,1728402645215,-2000.0,0.00016,2]
[340051966,1728402645225,-3221.74649,0.0001601,2]
[340051967,1728402645236,-5898.48,0.00016116,2]
[340051968,1728402645246,-44754.2400289,0.00016427,2]
[340051969,1728402645256,-300.0,0.00016438,2]
[340051970,1728402645266,-153.47,0.00016438,2]
[340051971,1728402645276,-151.0,0.00016438,2]
[340051972,1728402645286,-150.0,0.00016438,2]
[340051973,1728402645296,-2000.0,0.00016438,2]
[340051974,1728402645306,-2000.0,0.00016438,2]
[340051975,1728402645316,-2000.0,0.00016438,2]
[340051976,1728402645326,-2000.0,0.00016438,2]
[340051977,1728402645337,-2000.0,0.00016438,2]
[340051978,1728402645346,-173.12,0.000165,2]
[340051979,1728402645360,-9158.0,0.00016823,2]
[340051980,1728402645369,-150.0,0.00016871,2]
[340051981,1728402645379,-150.0,0.00017,2]
[340051982,1728402645389,-400.0,0.00017,2]
[340051983,1728402645398,-150.0,0.00017304,2]
[340051984,1728402645410,-735.89,0.00017353,2]
[340051985,1728402645419,-160.13,0.00017592,2]
[340051986,1728402645429,-150.0,0.00017736,2]
[340051987,1728402645440,-184.46,0.000178,7]
[340051988,1728402645450,-150.0,0.00018169,2]
[340051989,1728402645460,-151.0,0.00018356,2]
[340051990,1728402645470,-151.0,0.00018356,2]
[340051991,1728402645480,-159.175236,0.00018356,2]
[340051992,1728402645490,-151.0,0.00018356,2]
[340051993,1728402645500,-151.0,0.00018356,2]
[340051994,1728402645511,-151.0,0.00018356,2]
[340051995,1728402645521,-151.0,0.00018356,2]
[340051996,1728402645530,-151.0,0.00018356,2]
[340051997,1728402645540,-151.0,0.00018356,2]
[340051998,1728402645550,-151.0,0.00018356,2]
[340051999,1728402645560,-151.0,0.00018356,2]
[340052000,1728402645570,-491.420714,0.00018356,2]
[340052001,1728402645580,-491.420714,0.00018356,2]
[340052002,1728402645645,-1574.273559,0.00018356,2]
[340052003,1728402645662,-1574.273559,0.00018356,2]
[340052004,1728402645672,-151.0,0.00018356,2]
[340052005,1728402645682,-240.480305,0.00018356,2]
[340052006,1728402645692,-1057.013317,0.00018356,2]
[340052007,1728402645701,-1057.013317,0.00018356,2]
[340052008,1728402645712,-151.0,0.00018356,2]
[340052009,1728402645721,-151.0,0.00018356,2]
[340052010,1728402645731,-151.0,0.00018356,2]
[340052011,1728402645741,-151.0,0.00018356,2]
[340052012,1728402645751,-151.0,0.00018356,2]
[340052013,1728402645761,-151.0,0.00018356,2]
[340052014,1728402645771,-151.0,0.00018356,2]
[340052015,1728402645781,-151.0,0.00018356,2]
[340052016,1728402645791,-151.0,0.00018356,2]
[340052017,1728402645801,-151.0,0.00018356,2]
[340052018,1728402645811,-151.0,0.00018356,2]
[340052019,1728402645820,-151.0,0.00018356,2]
[340052020,1728402645830,-151.0,0.00018356,2]
[340052021,1728402645839,-80779.7,0.00018356,2]
[340052022,1728402645848,-420.08,0.00018438,2]
[340052023,1728402645860,-150.0,0.00018601,2]
[340052024,1728402645868,-151.0,0.00018787,2]
[340052025,1728402645879,-151.0,0.00018787,2]
[340052026,1728402645889,-151.0,0.00018787,2]
[340052027,1728402645899,-150.0,0.00019034,2]
[340052028,1728402645909,-1218.30650098,0.00019178,2]
[340052029,1728402645919,-200.0,0.00019178,2]
[340052030,1728402645930,-192.0,0.00019178,2]
[340052032,1728402645940,-201.0,0.00019178,2]
[340052033,1728402645951,-150.0,0.00019466,2]
[340052034,1728402645961,-735.89,0.00019617,2]
[340052035,1728402645970,-1143.820271,0.00019779,2]
[340052036,1728402645980,-1143.820271,0.00019779,2]
[340052037,1728402645989,-151.0,0.00019779,2]
[340052039,1728402645999,-151.0,0.00019779,2]
[340052041,1728402646009,-233.972296,0.00019779,2]
[340052043,1728402646018,-233.972296,0.00019779,2]
[340052045,1728402646028,-151.889184,0.00019779,2]
[340052047,1728402646037,-263.34538,0.00019779,2]
[340052048,1728402646048,-263.34538,0.00019779,2]
[340052050,1728402646058,-256.511464,0.00019779,2]
[340052051,1728402646067,-383.646035,0.00019779,2]
[340052052,1728402646079,-256.511464,0.00019779,2]
[340052053,1728402646089,-383.646035,0.00019779,2]
[340052054,1728402646098,-151.0,0.00019779,2]
[340052056,1728402646110,-151.0,0.00019779,2]
[340052058,1728402646123,-154.691597,0.00019779,2]
[340052059,1728402646133,-340.836957,0.00019779,2]
[340052060,1728402646143,-340.836957,0.00019779,2]
[340052061,1728402646153,-151.0,0.00019779,2]
[340052062,1728402646162,-151.0,0.00019779,2]
[340052063,1728402646172,-151.0,0.00019779,2]
[340052064,1728402646182,-151.0,0.00019779,2]
[340052065,1728402646191,-151.0,0.00019779,2]
[340052066,1728402646201,-190.777169,0.00019779,2]
[340052067,1728402646211,-151.0,0.00019779,2]
[340052068,1728402646220,-151.0,0.00019779,2]
[340052069,1728402646230,-151.0,0.00019779,2]
[340052070,1728402646240,-163.608933,0.00019779,2]
[340052071,1728402646251,-163.608933,0.00019779,2]
[340052072,1728402646260,-332.643552,0.00019779,2]
[340052073,1728402646269,-221.866488,0.00019779,2]
[340052074,1728402646278,-221.866488,0.00019779,2]
[340052075,1728402646288,-707.451329,0.00019779,2]
[340052076,1728402646297,-707.451329,0.00019779,2]
[340052077,1728402646306,-154.251472,0.00019779,2]
[340052078,1728402646316,-154.805976,0.00019779,2]
[340052079,1728402646326,-10000.0,0.00019792,2]
[340052080,1728402646336,-150.0,0.00019899,2]
[340052081,1728402646346,-860.0,0.0002,2]
[340052082,1728402646356,-2000.0,0.0002,2]
[340052083,1728402646365,-860.0,0.0002,2]
[340052084,1728402646375,-150.0,0.0002,2]
[340052085,1728402646385,-150.0,0.0002,2]
[340052086,1728402646395,-2000.0,0.0002001,2]